lending/lending_fUSD_20240112
["ID","MTS","AMOUNT","RATE_DAILY","PERIOD"]
[311404424,1705077129127,-500.0,0.00026622,2]
[311404425,1705077129136,-910.05,0.00026622,2]
[311404426,1705077129145,-500.0,0.00026622,2]
[311404427,1705077129157,-772.68,0.00026622,2]
[311404428,1705077129166,-500.0,0.00026622,2]
[311404429,1705077129175,-758.57,0.00026622,2]
[311404430,1705077129185,-500.0,0.00026622,2]
[311404431,1705077129194,-747.06,0.00026622,2]
[311404432,1705077129203,-500.0,0.00026622,2]
[311404433,1705077129213,-500.0,0.00026622,2]
[311404434,1705077129222,-500.0,0.00026622,2]
[311404435,1705077129232,-1049.62,0.00026622,2]
[311404436,1705077129241,-500.0,0.00026622,2]
[311404437,1705077129251,-500.0,0.00026622,2]
[311404438,1705077129260,-500.0,0.00026622,2]
[311404439,1705077129269,-1085.86,0.00026622,2]
[311404440,1705077129279,-767.7,0.00026622,2]
[311404441,1705077129288,-515.51,0.00026622,2]
[311404442,1705077129298,-500.0,0.00026622,2]
[311404443,1705077129308,-500.0,0.00026622,2]
[311404444,1705077129318,-678.28,0.00026622,2]
[311404445,1705077129327,-3039.1,0.00026622,2]
[311404446,1705077129336,-676.63,0.00026622,2]
[311404447,1705077129346,-500.0,0.00026622,2]
[311404448,1705077129355,-500.0,0.00026622,2]
[311404449,1705077129365,-902.95,0.00026622,2]
[311404450,1705077129374,-500.0,0.00026622,2]
[311404451,1705077129383,-605.4,0.00026622,2]
[311404452,1705077129392,-500.0,0.00026624,2]
[311404453,1705077129401,-150.0,0.00026672,2]
[311404454,1705077129411,-150.0,0.00026675,2]
[311404455,1705077129421,-150.0,0.00026678,2]
[311404456,1705077129430,-150.0,0.00026746,2]
[311404457,1705077129439,-4436.131,0.00026883,2]
[311404458,1705077129450,-802.914,0.00026883,2]
[311404459,1705077129459,-1234.0,0.00026883,2]
[311404460,1705077129471,-394.565,0.00026883,2]
[311404461,1705077129481,-318.0,0.00026883,2]
[311404462,1705077129490,-625.39,0.00026889,2]
[311404463,1705077129499,-1429.49,0.0002689,2]
[311404464,1705077129510,-9945.1,0.0002689,2]
[311404465,1705077129519,-978.78,0.0002689,2]
[311404466,1705077129529,-1378.24,0.0002689,2]
[311404467,1705077129538,-867.37,0.0002689,2]
[311404468,1705077129547,-576.62,0.0002689,2]
[311404469,1705077129556,-1895.37,0.0002689,2]
[311404470,1705077129566,-741.66,0.0002689,2]
[311404471,1705077129576,-594.56,0.0002689,2]
[311404472,1705077129585,-28063.97,0.0002689,2]
[311404473,1705077129594,-1179.37,0.0002689,2]
[311404474,1705077129603,-1161.83,0.0002689,2]
[311404475,1705077129613,-16126.91,0.0002689,2]
[311404476,1705077129622,-5776.69,0.0002689,2]
[311404477,1705077129631,-854.65,0.0002689,2]
[311404478,1705077129640,-788.93,0.0002689,2]
[311404479,1705077129649,-846.93,0.0002689,2]
[311404480,1705077129658,-500.0,0.0002689,2]
[311404481,1705077129667,-2347.67,0.0002689,2]
[311404482,1705077129676,-944.74,0.0002689,2]
[311404483,1705077129686,-556.66,0.0002689,2]
[311404484,1705077129695,-915.17,0.0002689,2]
[311404485,1705077129703,-801.65,0.0002689,2]
[311404486,1705077129713,-11316.9,0.0002689,2]
[311404487,1705077129722,-1188.34,0.0002689,2]
[311404488,1705077129731,-1285.67,0.0002689,2]
[311404489,1705077129740,-520.06,0.0002689,2]
[311404490,1705077129750,-1592.48,0.0002689,2]
[311404491,1705077129759,-1869.56,0.0002689,2]
[311404492,1705077129768,-575.88,0.0002689,2]
[311404493,1705077129778,-1025.29,0.0002689,2]
[311404494,1705077129787,-765.07,0.0002689,2]
[311404495,1705077129796,-1932.17,0.0002689,2]
[311404496,1705077129806,-825.06,0.0002689,2]
[311404497,1705077129815,-1309.88,0.0002689,2]
[311404498,1705077129824,-500.0,0.00026892,2]
[311404499,1705077129833,-1331.39,0.00026892,2]
[311404500,1705077129843,-1601.07,0.00026892,2]
[311404501,1705077129852,-1448.76,0.00026892,5]
[311404502,1705077129861,-553.23,0.00026892,2]
[311404503,1705077129870,-6027.14,0.00026892,2]
[311404504,1705077129879,-8057.22,0.00026892,2]
[311404505,1705077129889,-2024.92,0.00026892,2]
[311404506,1705077129898,-839.27,0.00026892,2]
[311404507,1705077129907,-1398.26,0.00026892,2]
[311404508,1705077129917,-4395.36,0.00026892,2]
[311404509,1705077129926,-150.0,0.00026892,2]
[311404510,1705077129935,-791.14,0.00026892,2]
[311404511,1705077129945,-976.62,0.00026893,2]
[311404512,1705077129954,-937.67,0.00026893,2]
[311404513,1705077129966,-500.0,0.00026893,2]
[311404514,1705077129977,-500.0,0.00026893,2]
[311404515,1705077129987,-500.0,0.00026893,2]
[311404516,1705077129996,-500.0,0.00026893,2]
[311404517,1705077130007,-500.0,0.00026893,2]
[311404518,1705077130017,-500.0,0.00026893,2]
[311404519,1705077130026,-1107.53,0.00026893,2]
[311404520,1705077130035,-608.63,0.00026893,2]
[311404521,1705077130045,-565.8,0.00026893,2]
[311404522,1705077130055,-500.0,0.00026893,2]
[311404523,1705077130065,-523.56,0.00026893,2]
[311404524,1705077130075,-594.07,0.00026893,2]
[311404525,1705077130085,-1120.5,0.00026893,2]
[311404526,1705077130095,-571.6,0.00026893,2]
[311404527,1705077130105,-500.0,0.00026893,2]
[311404528,1705077130114,-500.0,0.00026893,2]
[311404529,1705077130124,-539.74432196,0.00026893,2]
[311404530,1705077130133,-1474.92,0.00026893,2]
[311404531,1705077130143,-4177.28,0.00026893,2]
[311404532,1705077130152,-1872.87,0.00026893,2]
[311404533,1705077130162,-1357.01,0.00026893,2]
[311404534,1705077130172,-10644.17,0.00026893,2]
[311404535,1705077130182,-152.22,0.00026893,2]
[311404536,1705077130192,-150.0,0.00026893,2]
[311404537,1705077130202,-500.0,0.00026893,2]
[311404538,1705077130215,-4961.7,0.00026893,2]
[311404539,1705077130225,-933.63,0.00026893,2]
[311404540,1705077130235,-598.75151285,0.00026893,2]
[311404541,1705077130244,-636.31,0.00026893,2]
[311404542,1705077130254,-1195.27,0.00026893,2]
[311404543,1705077130263,-1808.5,0.00026893,2]
[311404544,1705077130273,-1852.8,0.00026893,2]
[311404545,1705077130283,-3071.92,0.00026893,2]
[311404546,1705077130292,-2545.58,0.00026893,2]
[311404547,1705077130302,-640.93566799,0.00026893,2]
[311404548,1705077130311,-500.0,0.00026893,2]
[311404549,1705077130320,-2126.07,0.00026893,2]
[311404550,1705077130330,-1558.28,0.00026893,2]
[311404551,1705077130339,-3767.3,0.00026893,2]
[311404552,1705077130349,-1845.89,0.00026893,2]
[311404553,1705077130358,-669.67,0.00026893,2]
[311404554,1705077130368,-2228.6,0.00026893,2]
[311404555,1705077130377,-500.0,0.00026893,2]
[311404556,1705077130387,-846.0,0.00026893,2]
[311404557,1705077130396,-2416.09,0.00026893,2]
[311404558,1705077130406,-13698.75,0.00026893,2]
[311404559,1705077130415,-1205.25,0.00026893,2]
[311404560,1705077130425,-3731.97,0.00026893,2]
[311404561,1705077130434,-812.57,0.00026893,2]
[311404562,1705077130443,-2269.52,0.00026893,2]
[311404563,1705077130453,-1615.37,0.00026893,2]
[311404564,1705077130466,-500.0,0.00026893,2]
[311404565,1705077130480,-946.07,0.00026893,2]
[311404566,1705077130491,-500.0,0.00026893,2]
[311404567,1705077130501,-636.34,0.00026893,2]
[311404568,1705077130511,-656.56,0.00026893,2]
[311404569,1705077130522,-600.96,0.00026894,2]
[311404570,1705077130531,-500.0,0.00026894,2]
[311404571,1705077130542,-500.0,0.00026894,2]
[311404572,1705077130552,-500.0,0.00026894,2]
[311404573,1705077130561,-571.62,0.00026894,2]
[311404574,1705077130571,-500.0,0.00026894,2]
[311404575,1705077130581,-500.0,0.00026894,2]
[311404576,1705077130590,-1417.94,0.00026894,2]
[311404577,1705077130600,-500.0,0.00026894,2]
[311404578,1705077130610,-965.53,0.00026894,2]
[311404579,1705077130620,-2036.95,0.00026894,2]
[311404580,1705077130630,-500.0,0.00026894,2]
[311404581,1705077130640,-500.0,0.00026894,2]
[311404582,1705077130650,-500.0,0.00026894,2]
[311404583,1705077130659,-594.21,0.00026894,2]
[311404584,1705077130669,-683.21,0.00026894,2]
[311404585,1705077130679,-565.97,0.00026894,2]
[311404586,1705077130688,-500.0,0.00026894,2]
[311404587,1705077130698,-511.84,0.00026894,2]
[311404588,1705077130707,-1545.91,0.00026894,2]
[311404589,1705077130720,-1125.76,0.00026894,2]
[311404590,1705077130729,-806.95,0.00026894,2]
[311404591,1705077130738,-1118.05,0.00026894,2]
[311404592,1705077130748,-806.37,0.00026894,2]
[311404593,1705077130757,-4705.31,0.00026894,2]
[311404594,1705077130767,-4838.78,0.00026894,2]
[311404595,1705077130776,-973.61,0.00026894,2]
[311404596,1705077130785,-3717.14,0.00026894,2]
[311404597,1705077130794,-964.46,0.00026894,2]
[311404598,1705077130804,-466.9826124,0.00026894,2]
[311404599,1705077130813,-500.0,0.00026894,2]
[311404600,1705077130821,-500.0,0.00026894,2]
[311404601,1705077130830,-628.62,0.00026894,2]
[311404602,1705077130839,-508.58,0.00026894,2]
[311404603,1705077130848,-1093.02,0.00026894,2]
[311404604,1705077130858,-2444.08,0.00026894,2]
[311404605,1705077130867,-1131.66,0.00026894,2]
[311404606,1705077130876,-1941.71,0.00026894,2]
[311404607,1705077130885,-829.37,0.00026894,2]
[311404608,1705077130895,-923.95,0.00026894,2]
[311404609,1705077130904,-500.0,0.00026894,2]
[311404610,1705077130913,-693.03,0.00026894,2]
[311404611,1705077130923,-2777.7,0.00026894,2]
[311404612,1705077130932,-546.11,0.00026894,2]
[311404613,1705077130941,-1599.45,0.00026894,2]
[311404614,1705077130950,-489.82090563,0.00026894,2]
[311404615,1705077130960,-533.41,0.00026894,2]
[311404616,1705077130973,-666.05,0.00026894,2]
[311404617,1705077130981,-775.82,0.00026894,2]
[311404618,1705077130990,-1275.61,0.00026894,2]
[311404619,1705077130998,-500.0,0.00026894,2]
[311404620,1705077131007,-723.72,0.00026894,2]
[311404621,1705077131016,-1101.03,0.00026894,2]
[311404622,1705077131025,-2377.81,0.00026894,2]
[311404623,1705077131034,-1960.6,0.00026894,2]
[311404624,1705077131043,-612.39,0.00026894,2]
[311404625,1705077131053,-4932.76,0.00026894,2]
[311404626,1705077131063,-555.03,0.00026894,2]
[311404627,1705077131072,-2035.38,0.00026894,2]
[311404628,1705077131082,-595.74,0.00026894,2]
[311404629,1705077131091,-500.0,0.00026894,2]
[311404630,1705077131100,-1056.92,0.00026894,2]
[311404631,1705077131109,-541.9,0.00026894,5]
[311404632,1705077131119,-500.0,0.00026894,2]
[311404633,1705077131128,-500.0,0.00026895,2]
[311404634,1705077131137,-500.0,0.00026895,2]
[311404635,1705077131146,-519.46,0.00026895,2]
[311404636,1705077131312,-516.68,0.00026895,2]
[311404637,1705077131334,-1080.77,0.00026895,2]
[311404638,1705077131344,-710.97,0.00026895,2]
[311404639,1705077131354,-1121.79,0.00026895,2]
[311404640,1705077131363,-500.0,0.00026895,2]
[311404641,1705077131372,-625.58,0.00026895,2]
[311404642,1705077131381,-500.0,0.00026895,2]
[311404643,1705077131390,-301.45032401,0.00026895,2]
[311404644,1705077131399,-500.0,0.00026895,2]
[311404645,1705077131409,-616.43,0.00026895,2]
[311404646,1705077131419,-719.05,0.00026895,2]
[311404647,1705077131428,-385.01043773,0.00026895,2]
[311404648,1705077131438,-604.24,0.00026895,2]
[311404649,1705077131447,-790.24,0.00026895,2]
[311404650,1705077131456,-700.63,0.00026895,2]
[311404651,1705077131468,-1719.73,0.00026895,2]
[311404652,1705077131478,-986.0,0.00026895,2]
[311404653,1705077131487,-711.04,0.00026895,2]
[311404654,1705077131496,-506.08,0.00026895,2]
[311404655,1705077131505,-1746.57,0.00026895,2]
[311404656,1705077131515,-1020.11,0.00026895,2]
[311404657,1705077131525,-777.31,0.00026895,2]
[311404658,1705077131535,-511.02,0.00026895,2]
[311404659,1705077131544,-2304.2,0.00026895,2]
[311404660,1705077131553,-500.0,0.00026895,2]
[311404661,1705077131563,-2513.79,0.00026895,2]
[311404662,1705077131572,-1000.0,0.00026895,2]
[311404663,1705077131581,-708.84,0.00026895,2]
[311404664,1705077131591,-500.0,0.00026896,2]
[311404665,1705077131600,-741.19,0.00026896,2]
[311404666,1705077131609,-666.1,0.00026896,2]
[311404667,1705077131618,-500.0,0.00026896,2]
[311404668,1705077131627,-500.0,0.00026896,2]
[311404669,1705077131637,-671.18,0.00026896,2]
[311404670,1705077131646,-500.0,0.00026896,2]
[311404671,1705077131656,-599.35,0.00026896,2]
[311404672,1705077131666,-500.0,0.00026896,2]
[311404673,1705077131675,-500.0,0.00026896,2]
[311404674,1705077131684,-500.0,0.00026896,2]
[311404675,1705077131693,-1194.85,0.00026896,2]
[311404676,1705077131703,-835.11,0.00026896,2]
[311404677,1705077131717,-500.0,0.00026896,2]
[311404678,1705077131726,-910.05,0.00026896,2]
[311404679,1705077131735,-500.0,0.00026896,2]
[311404680,1705077131744,-772.68,0.00026896,2]
[311404681,1705077131754,-500.0,0.00026896,2]
[311404682,1705077131763,-758.57,0.00026896,2]
[311404683,1705077131773,-500.0,0.00026896,2]
[311404684,1705077131783,-747.06,0.00026896,2]
[311404685,1705077131793,-500.0,0.00026896,2]
[311404686,1705077131802,-490.31835249,0.00026896,2]
[311404687,1705077131811,-500.0,0.00026896,2]
[311404688,1705077131821,-1049.62,0.00026896,2]
[311404689,1705077131831,-500.0,0.00026896,2]
[311404690,1705077131840,-500.0,0.00026896,2]
[311404691,1705077131849,-500.0,0.00026896,2]
[311404692,1705077131859,-1085.86,0.00026896,2]
[311404693,1705077131868,-767.7,0.00026896,2]
[311404694,1705077131878,-515.51,0.00026896,2]
[311404695,1705077131887,-500.0,0.00026896,2]
[311404696,1705077131897,-500.0,0.00026896,2]
[311404697,1705077131907,-678.28,0.00026896,2]
[311404698,1705077131917,-3039.1,0.00026896,2]
[311404699,1705077131926,-676.63,0.00026896,2]
[311404700,1705077131936,-500.0,0.00026896,2]
[311404701,1705077131945,-500.0,0.00026896,2]
[311404702,1705077131955,-902.95,0.00026896,2]
[311404703,1705077131967,-467.64,0.00026896,2]
[311404704,1705077131977,-605.4,0.00026896,2]
[311404705,1705077131986,-500.0,0.00026898,2]
[311404706,1705077131996,-4168.0,0.00026967,2]
[311404707,1705077132005,-2455.159,0.00026967,2]
[311404708,1705077132014,-19148.307,0.00026967,2]
[311404709,1705077132023,-2268.0,0.00026967,2]
[311404710,1705077132032,-1028.0,0.00026967,2]
[311404711,1705077132041,-822.777,0.00026967,2]
[311404712,1705077132050,-12283.43506918,0.00027,2]
[311404713,1705077132060,-155.0,0.00027,2]
[311404714,1705077132069,-415.58939019,0.00027,2]
[311404715,1705077132078,-1300.0,0.00027,3]
[311404716,1705077132088,-292.11,0.00027007,2]
[311404717,1705077132097,-409.92,0.00027008,2]
[311404718,1705077132106,-150.0,0.00027052,2]
[311404719,1705077132115,-150.0,0.00027053,2]
[311404720,1705077132125,-150.0,0.00027099,2]
[311404721,1705077132135,-4414.272603,0.0002713,2]
[311404722,1705077132145,-5262.4008211,0.00027149,2]
[311404723,1705077132155,-265.5834141,0.00027149,2]
[311404724,1705077132165,-86345.0868899,0.00027149,2]
[311404725,1705077132175,-737.6,0.00027151,2]
[311404726,1705077132186,-625.39,0.00027163,2]
[311404727,1705077132195,-1429.49,0.00027164,2]
[311404728,1705077132204,-9945.1,0.00027164,2]
[311404729,1705077132215,-978.78,0.00027164,2]
[311404730,1705077132225,-1378.24,0.00027164,2]
[311404731,1705077132234,-867.37,0.00027164,2]
[311404732,1705077132244,-576.62,0.00027164,2]
[311404733,1705077132254,-1895.37,0.00027164,2]
[311404734,1705077132264,-741.66,0.00027164,2]
[311404735,1705077132273,-594.56,0.00027164,2]
[311404736,1705077132283,-28063.97,0.00027164,2]
[311404737,1705077132292,-1179.37,0.00027164,2]
[311404738,1705077132301,-1161.83,0.00027164,2]
[311404739,1705077132314,-16126.91,0.00027164,2]
[311404740,1705077132324,-5776.69,0.00027164,2]
[311404741,1705077132333,-854.65,0.00027164,2]
[311404742,1705077132342,-788.93,0.00027164,2]
[311404743,1705077132351,-846.93,0.00027164,2]
[311404744,1705077132361,-500.0,0.00027164,2]
[311404745,1705077132370,-2347.67,0.00027164,2]
[311404746,1705077132379,-944.74,0.00027164,2]
[311404747,1705077132389,-556.66,0.00027164,2]
[311404748,1705077132398,-915.17,0.00027164,2]
[311404749,1705077132407,-801.65,0.00027164,2]
[311404750,1705077132416,-11316.9,0.00027164,2]
[311404751,1705077132426,-1188.34,0.00027164,2]
[311404752,1705077132435,-1285.67,0.00027164,2]
[311404753,1705077132444,-520.06,0.00027164,2]
[311404754,1705077132454,-1592.48,0.00027164,2]
[311404755,1705077132465,-1869.56,0.00027164,2]
[311404756,1705077132474,-575.88,0.00027164,2]
[311404757,1705077132483,-1025.29,0.00027164,2]
[311404758,1705077132493,-765.07,0.00027164,2]
[311404759,1705077132502,-1932.17,0.00027164,2]
[311404760,1705077132512,-825.06,0.00027164,2]
[311404761,1705077132521,-1309.88,0.00027164,2]
[311404762,1705077132533,-500.0,0.00027166,2]
[311404763,1705077132542,-1331.39,0.00027166,2]
[311404764,1705077132552,-1601.07,0.00027166,2]
[311404765,1705077132561,-1448.76,0.00027166,5]
[311404766,1705077132571,-553.23,0.00027166,2]
[311404767,1705077132580,-6027.14,0.00027166,2]
[311404768,1705077132589,-8057.22,0.00027166,2]
[311404769,1705077132598,-2024.92,0.00027166,2]
[311404770,1705077132608,-839.27,0.00027166,2]
[311404771,1705077132618,-1398.26,0.00027166,2]
[311404772,1705077132627,-4395.36,0.00027166,2]
[311404773,1705077132637,-791.14,0.00027166,2]
[311404774,1705077132646,-976.62,0.00027167,2]
[311404775,1705077132655,-937.67,0.00027167,2]
[311404776,1705077132664,-471.43512884,0.00027167,2]
[311404777,1705077132673,-500.0,0.00027167,2]
[311404778,1705077132682,-500.0,0.00027167,2]
[311404779,1705077132691,-500.0,0.00027167,2]
[311404780,1705077132700,-500.0,0.00027167,2]
[311404781,1705077132710,-500.0,0.00027167,2]
[311404782,1705077132720,-1107.53,0.00027167,2]
[311404783,1705077132729,-608.63,0.00027167,2]
[311404784,1705077132738,-565.8,0.00027167,2]
[311404785,1705077132747,-500.0,0.00027167,2]
[311404786,1705077132757,-523.56,0.00027167,2]
[311404787,1705077132767,-594.07,0.00027167,2]
[311404788,1705077132776,-1120.5,0.00027167,2]
[311404789,1705077132785,-571.6,0.00027167,2]
[311404790,1705077132794,-500.0,0.00027167,2]
[311404791,1705077132803,-500.0,0.00027167,2]
[311404792,1705077132813,-1474.92,0.00027167,2]
[311404793,1705077132822,-4177.28,0.00027167,2]
[311404794,1705077132832,-1872.87,0.00027167,2]
[311404795,1705077132844,-1357.01,0.00027167,2]
[311404796,1705077132853,-10644.17,0.00027167,2]
[311404797,1705077132863,-150.0,0.00027167,2]
[311404798,1705077132873,-500.0,0.00027167,2]
[311404799,1705077132882,-4961.7,0.00027167,2]
[311404800,1705077132892,-933.63,0.00027167,2]
[311404801,1705077132902,-636.31,0.00027167,2]
[311404802,1705077132912,-1195.27,0.00027167,2]
[311404803,1705077132921,-1808.5,0.00027167,2]
[311404804,1705077132930,-1852.8,0.00027167,2]
[311404805,1705077132940,-3071.92,0.00027167,2]
[311404806,1705077132949,-2545.58,0.00027167,2]
[311404807,1705077132960,-569.38944494,0.00027167,2]
[311404808,1705077132975,-2126.07,0.00027167,2]
[311404809,1705077132985,-1558.28,0.00027167,2]
[311404810,1705077132994,-3767.3,0.00027167,2]
[311404811,1705077133005,-1845.89,0.00027167,2]
[311404812,1705077133015,-669.67,0.00027167,2]
[311404813,1705077133025,-2228.6,0.00027167,2]
[311404814,1705077133034,-500.0,0.00027167,2]
[311404815,1705077133043,-846.0,0.00027167,2]
[311404816,1705077133053,-2416.09,0.00027167,2]
[311404817,1705077133062,-13698.75,0.00027167,2]
[311404818,1705077133072,-1205.25,0.00027167,2]
[311404819,1705077133081,-3731.97,0.00027167,2]
[311404820,1705077133092,-812.57,0.00027167,2]
[311404821,1705077133101,-2269.52,0.00027167,2]
[311404822,1705077133111,-1615.37,0.00027167,2]
[311404823,1705077133121,-500.0,0.00027167,2]
[311404824,1705077133131,-946.07,0.00027167,2]
[311404825,1705077133140,-500.0,0.00027167,2]
[311404826,1705077133150,-636.34,0.00027167,2]
[311404827,1705077133160,-656.56,0.00027167,2]
[311404828,1705077133169,-600.96,0.00027168,2]
[311404829,1705077133178,-289.85445925,0.00027168,2]
[311404830,1705077133187,-500.0,0.00027168,2]
[311404831,1705077133196,-500.0,0.00027168,2]
[311404832,1705077133205,-571.62,0.00027168,2]
[311404833,1705077133217,-466.56168797,0.00027168,2]
[311404834,1705077133226,-500.0,0.00027168,2]
[311404835,1705077133234,-1417.94,0.00027168,2]
[311404836,1705077133243,-500.0,0.00027168,2]
[311404837,1705077133253,-965.53,0.00027168,2]
[311404838,1705077133263,-2036.95,0.00027168,2]
[311404839,1705077133272,-500.0,0.00027168,2]
[311404840,1705077133282,-500.0,0.00027168,2]
[311404841,1705077133291,-377.15642276,0.00027168,2]
[311404842,1705077133301,-594.21,0.00027168,2]
[311404843,1705077133311,-683.21,0.00027168,2]
[311404844,1705077133320,-565.97,0.00027168,2]
[311404845,1705077133330,-483.27973041,0.00027168,2]
[311404846,1705077133339,-511.84,0.00027168,2]
[311404847,1705077133348,-1545.91,0.00027168,2]
[311404848,1705077133357,-1125.76,0.00027168,2]
[311404849,1705077133366,-806.95,0.00027168,2]
[311404850,1705077133375,-1118.05,0.00027168,2]
[311404851,1705077133385,-806.37,0.00027168,2]
[311404852,1705077133394,-4705.31,0.00027168,2]
[311404853,1705077133403,-4838.78,0.00027168,2]
[311404854,1705077133413,-973.61,0.00027168,2]
[311404855,1705077133422,-3717.14,0.00027168,2]
[311404856,1705077133432,-964.46,0.00027168,2]
[311404857,1705077133441,-500.0,0.00027168,2]
[311404858,1705077133450,-500.0,0.00027168,2]
[311404859,1705077133459,-628.62,0.00027168,2]
[311404860,1705077133470,-508.58,0.00027168,2]
[311404861,1705077133479,-1093.02,0.00027168,2]
[311404862,1705077133489,-2444.08,0.00027168,2]
[311404863,1705077133498,-1131.66,0.00027168,2]
[311404864,1705077133508,-1941.71,0.00027168,2]
[311404865,1705077133517,-829.37,0.00027168,2]
[311404866,1705077133527,-923.95,0.00027168,2]
[311404867,1705077133537,-500.0,0.00027168,2]
[311404868,1705077133546,-693.03,0.00027168,2]
[311404869,1705077133555,-2777.7,0.00027168,2]
[311404870,1705077133564,-546.11,0.00027168,2]
[311404871,1705077133573,-1599.45,0.00027168,2]
[311404872,1705077133583,-533.41,0.00027168,2]
[311404873,1705077133592,-666.05,0.00027168,2]
[311404874,1705077133601,-775.82,0.00027168,2]
[311404875,1705077133610,-1275.61,0.00027168,2]
[311404876,1705077133619,-500.0,0.00027168,2]
[311404877,1705077133628,-723.72,0.00027168,2]
[311404878,1705077133637,-1101.03,0.00027168,2]
[311404879,1705077133646,-2377.81,0.00027168,2]
[311404880,1705077133655,-1960.6,0.00027168,2]
[311404881,1705077133664,-612.39,0.00027168,2]
[311404882,1705077133673,-4932.76,0.00027168,2]
[311404883,1705077133683,-555.03,0.00027168,2]
[311404884,1705077133692,-2035.38,0.00027168,2]
[311404885,1705077133701,-595.74,0.00027168,2]
[311404886,1705077133710,-500.0,0.00027168,2]
[311404887,1705077133722,-1056.92,0.00027168,2]
[311404888,1705077133731,-541.9,0.00027168,5]
[311404889,1705077133740,-500.0,0.00027168,2]
[311404890,1705077133749,-500.0,0.00027169,2]
[311404891,1705077133758,-596.63348783,0.00027169,2]
[311404892,1705077133767,-519.46,0.00027169,2]
[311404893,1705077133776,-516.68,0.00027169,2]
[311404894,1705077133785,-1080.77,0.00027169,2]
[311404895,1705077133793,-710.97,0.00027169,2]
[311404896,1705077133803,-1121.79,0.00027169,2]
[311404897,1705077133812,-500.0,0.00027169,2]
[311404898,1705077133821,-625.58,0.00027169,2]
[311404899,1705077133830,-500.0,0.00027169,2]
[311404900,1705077133839,-500.0,0.00027169,2]
[311404901,1705077133848,-616.43,0.00027169,2]
[311404902,1705077133857,-719.05,0.00027169,2]
[311404903,1705077133866,-604.24,0.00027169,2]
[311404904,1705077133875,-790.24,0.00027169,2]
[311404905,1705077133885,-700.63,0.00027169,2]
[311404906,1705077133894,-1719.73,0.00027169,2]
[311404907,1705077133903,-986.0,0.00027169,2]
[311404908,1705077133912,-711.04,0.00027169,2]
[311404909,1705077133921,-506.08,0.00027169,2]
[311404910,1705077133930,-1746.57,0.00027169,2]
[311404911,1705077133939,-1020.11,0.00027169,2]
[311404912,1705077133948,-777.31,0.00027169,2]
[311404913,1705077133957,-511.02,0.00027169,2]
[311404914,1705077133968,-2304.2,0.00027169,2]
[311404915,1705077133977,-500.0,0.00027169,2]
[311404916,1705077133986,-2513.79,0.00027169,2]
[311404917,1705077133995,-1000.0,0.00027169,2]
[311404918,1705077134005,-708.84,0.00027169,2]
[311404919,1705077134014,-500.0,0.0002717,2]
[311404920,1705077134023,-741.19,0.0002717,2]
[311404921,1705077134033,-666.1,0.0002717,2]
[311404922,1705077134042,-500.0,0.0002717,2]
[311404923,1705077134051,-500.0,0.0002717,2]